Cogmind - Beta 16 @@@ ROGUE MODE // 2025.12.08 @ 05:46:12 Player: H3-MLN Result: Destroyed by 9C-38J(E) with Gauss Rifle Performance ------------- Evolutions (3) 1500 Regions Visited (13) 2600 Robots Destroyed (93) 465 Value Destroyed (1585) 1585 Prototype IDs (56) 1120 Alien Tech Used (0) 0 Bonus (366) 366 TOTAL SCORE: 7636 Bonus ------- High Alert Combat Kills 26 Follower Combat Kills 515 Aligned with FarCom 300 Friendly Fire -475 Cogmind --------- Core Integrity 0/700 Matter 300/300 Energy 299/300 System Corruption 0% Temperature Cool (13) Movement Hovering (42) Location -7/Scraptown Parts ------- > --- POWER (1) -------- Enhanced Nuclear Core > --- PROPULSION (3) --- Aerolev Unit Cooled Aerolev Unit > --- UTILITY (7) ------ Lightpack 2.0 Improved Sensor Array Authchip [Propulsion] Authchip [Propulsion] > --- WEAPON (2) ------- (None) > --- INVENTORY (40) --- Aerolev Unit Aerolev Unit Improved Cesium-ion Thruster Improved Cesium-ion Thruster Improved Cesium-ion Thruster Improved Cesium-ion Thruster Superbattery (1500) High-capacity Matter Pod (200) High-capacity Matter Pod (200) Machine Analyzer Improved Signal Interpreter Transmission Jammer Authchip [Propulsion] Authchip [Device] Authchip [Storage] Authchip [Processor] Authchip [Processor] Authchip [Weapon] Authchip [Weapon] Relay Coupler [Proto] (2) Mini Grenade Launcher Mini Grenade Launcher Improved Datajack Plasma Cutter CPS Tube (2) CPS Tube (2) Scythe Peak State ------------ > --- POWER ------------ Enhanced Nuclear Core > --- PROPULSION ------- Aerolev Unit Aerolev Unit Cooled Aerolev Unit > --- UTILITY ---------- Lightpack 2.0 Improved Melee Analysis Suite Core Analyzer Nanoactuators Supersonic Drone Bay > --- WEAPON ----------- Improved Datajack Scythe > --- INVENTORY -------- Aerolev Unit Aerolev Unit Improved Cesium-ion Thruster Improved Cesium-ion Thruster Improved Cesium-ion Thruster Improved Cesium-ion Thruster Superbattery High-capacity Matter Pod High-capacity Matter Pod Improved Signal Interpreter Transmission Jammer Authchip [Propulsion] Authchip [Propulsion] Authchip [Propulsion] Authchip [Device] Authchip [Storage] Authchip [Processor] Authchip [Processor] Authchip [Weapon] Authchip [Weapon] Improved Trap Extractor Mini Grenade Launcher Mini Grenade Launcher Rocket Array Plasma Cutter [Rating: 87] Favorites ----------- Power Light Ion Engine Engine Light Ion Engine Power Core Enhanced Nuclear Core Propulsion Flight Unit Hover Unit Aerolev Unit Flight Unit Flight Unit Utility Lightpack 2.0 Device Improved Sensor Array Storage Lightpack 2.0 Processor Transport Network Coupler Hackware Hacking Suite Protection Light Armor Plating Weapon Katana Energy Gun EM Pulse Gun Ballistic Gun Light Assault Rifle Launcher Mini Grenade Launcher Impact Weapon Maul Slashing Weapon Katana Special Melee Weapon Improved Datajack Build | -11 -10 -10 -9 -9 -9 -8 -8 -7 -7 -7 -7 -7 -7 ------- Run | Yrd Mat Min Mat Min Exi Min Mat Fac Was Fac Sto Rec Scr Slots Evolved 6 | . . . 2 . . . 2 2 . . . . . Power . | . . . . . . . . . . . . . . Propulsion 1 | . . . . . . . . 1 . . . . . Utility 5 | . . . 2 . . . 2 1 . . . . . Weapon . | . . . . . . . . . . . . . . Parts Attached 79 | 2 15 2 14 1 2 . 3 3 4 12 10 6 5 Power 7 | . 1 . 1 . . . . 1 . 2 1 1 . Engine 6 | . 1 . 1 . . . . 1 . 2 1 . . Core 1 | . . . . . . . . . . . . 1 . Reactor . | . . . . . . . . . . . . . . Propulsion 21 | . 3 2 3 . . . . . 2 5 4 2 . Treads . | . . . . . . . . . . . . . . Leg . | . . . . . . . . . . . . . . Wheel . | . . . . . . . . . . . . . . Hover 5 | . . . . . . . . . 2 . 1 2 . Flight 16 | . 3 2 3 . . . . . . 5 3 . . Utility 30 | 1 2 . 6 1 1 . 2 2 1 4 3 3 4 Device 13 | 1 . . 2 1 . . . 1 1 3 2 1 1 Storage 1 | . . . . . 1 . . . . . . . . Processor 7 | . 1 . 3 . . . 1 . . . . 2 . Hackware 6 | . . . . . . . 1 1 . 1 1 . 2 Protection 3 | . 1 . 1 . . . . . . . . . 1 Artifact . | . . . . . . . . . . . . . . Weapon 21 | 1 9 . 4 . 1 . 1 . 1 1 2 . 1 Energy Gun 3 | . 2 . 1 . . . . . . . . . . Energy Cannon . | . . . . . . . . . . . . . . Ballistic Gun 4 | 1 3 . . . . . . . . . . . . Ballistic Cannon . | . . . . . . . . . . . . . . Launcher 4 | . 3 . . . . . . . . 1 . . . Special Weapon . | . . . . . . . . . . . . . . Impact Weapon 3 | . . . 1 . . . 1 . . . 1 . . Slashing Weapon 5 | . . . 2 . . . . . 1 . 1 . 1 Piercing Weapon . | . . . . . . . . . . . . . . Special Melee Weapon 2 | . 1 . . . 1 . . . . . . . . Unidentified Prototypes 9 | . . . 1 1 . . . 1 . 2 2 2 . Corrupted Parts 2 | . . . . . . . . . . . . . 2 System Corruption 6 | . . . . . . . . . . . . . 6 Parts Lost 26 | . . 1 5 1 . . . 2 . 2 11 . 4 Power 3 | . . . 2 . . . . . . . 1 . . Propulsion 13 | . . 1 3 1 . . . 1 . 2 4 . 1 Utility 7 | . . . . . . . . . . . 5 . 2 Weapon 3 | . . . . . . . . 1 . . 1 . 1 Highest Loss Streak 4 | . . 1 2 1 . . . 1 . 1 4 . 4 To Critical Strikes . | . . . . . . . . . . . . . . Average Backups 12 | 2 3 4 4 4 7 10 11 11 14 17 20 24 27 Power . | . . . . . . . . . . 1 1 . . Propulsion 1 | . 1 1 . . . . . . . . . 6 6 Utility 6 | . . 1 1 1 1 4 5 7 8 10 13 14 16 Weapon 3 | 1 1 2 2 2 3 4 3 3 4 3 3 2 2 Tool/Special . | . . . . . . . . . . . . . . Unused Backups 33 | . 4 1 2 1 1 . 1 . . 1 . 2 20 Power 1 | . 1 . . . . . . . . . . . . Propulsion 7 | . 2 1 . . . . . . . . . . 4 Utility 18 | . . . 2 . 1 . . . . . . 2 13 Weapon 4 | . 1 . . 1 . . 1 . . 1 . . . Tool/Special 3 | . . . . . . . . . . . . . 3 Average Slot Usage (%) 70 | . 76 99 95 77 41 33 41 61 77 75 50 74 82 Engine 5 | . 10 14 9 . . . . 4 7 7 2 . . Hover 5 | . . . . . . . . 5 20 2 1 20 23 Flight 12 | . 16 27 21 20 11 11 9 . . 20 11 2 . Device 10 | . 14 14 16 8 . . . 6 14 14 7 13 13 Storage 5 | . . . . . 7 11 9 7 7 7 7 7 7 Processor 9 | . 7 14 21 22 14 11 13 7 . . . 9 11 Hackware 6 | . . . . . . . 8 14 15 15 13 . 2 Protection 1 | . 2 . 5 4 . . . . . . . . 1 Energy Gun 1 | . 4 7 . . . . . . . . . . . Ballistic Gun 1 | . 15 . . . . . . . . . . . . Impact Weapon 1 | . . . 4 11 3 . 1 1 . . 3 . . Slashing Weapon 4 | . . . 14 11 . . . 5 7 6 2 7 6 Special Melee Weapon 3 | . 1 14 . . 3 . . 4 3 . . 5 5 Peak Build Rating 87 | 2 9 9 16 26 37 35 44 55 65 68 68 87 86 Average Rating 43 | . 6 8 13 18 26 35 40 51 61 65 56 81 82 On Entrance 35 | . 2 9 8 14 11 35 35 42 55 65 68 66 84 Avg Prop Armor Cover (%) 9 | . . . . . . . . 12 9 7 7 7 . Naked Turns . | . . . . . . . . . . . . . . Heaviest Build 26 | 2 8 7 10 9 6 5 5 11 14 19 19 19 26 Greatest Support 31 | 3 8 8 10 10 5 5 5 14 31 25 25 25 29 Greatest Overweight (x) 2 | . 2 . 1 . 1 . . 1 . 1 1 . 1 Average Overweight (x) . | . . . . . . . . . . . . . . Largest Inventory Capacity 40 | 5 5 5 5 5 40 40 40 40 40 40 40 40 40 Average Capacity 28 | 5 5 5 5 5 27 40 40 40 40 40 40 40 40 Most Carried 28 | 4 5 5 5 5 10 11 13 13 15 22 25 25 28 Average Carried 12 | 2 3 4 4 4 7 10 11 11 14 18 20 24 27 Final Capacity 40 | 5 5 5 5 5 40 40 40 40 40 40 40 40 40 Final Carried 27 | 3 5 5 4 5 10 11 12 13 15 21 25 25 27 Class Distribution -------------------- 48% | Hauler-Mutant 20% | Scavenger-Mutant 19% | Hauler-Sprinter 12% | Mutant Dominant Class ---------------- Scavenger-Mutant | -10/Materials Scavenger-Mutant | -10/Mines Scavenger-Mutant | -9/Materials Mutant | -9/Mines Hauler-Mutant | -9/Exiles Hauler-Mutant | -8/Mines Hauler-Mutant | -8/Materials Hauler-Mutant | -7/Factory Hauler-Mutant | -7/Waste Hauler-Sprinter | -7/Factory Hauler-Mutant | -7/Storage Hauler-Mutant | -7/Recycling Hauler-Mutant | -7/Scraptown Resources | -11 -10 -10 -9 -9 -9 -8 -8 -7 -7 -7 -7 -7 -7 ----------- Run | Yrd Mat Min Mat Min Exi Min Mat Fac Was Fac Sto Rec Scr Matter Collected 1757 | 204 197 169 342 70 60 20 40 105 70 205 106 119 50 Remotely . | . . . . . . . . . . . . . . Salvage Created 2910 | 16 392 161 838 48 . . 36 205 52 738 403 . 21 Parts 175 | 5 29 18 54 2 . . 1 11 1 41 10 . 3 Haulers Intercepted 12 | . . . 5 . . . 1 . . 4 2 . . Recyclers Shooed 7 | . 6 . 1 . . . . . . . . . . Parts Field Recycled . | . . . . . . . . . . . . . . Retrieved Matter . | . . . . . . . . . . . . . . Parts Self-Destructed . | . . . . . . . . . . . . . . Prevented . | . . . . . . . . . . . . . . Parts Restored . | . . . . . . . . . . . . . . Kills | -11 -10 -10 -9 -9 -9 -8 -8 -7 -7 -7 -7 -7 -7 ------- Run | Yrd Mat Min Mat Min Exi Min Mat Fac Was Fac Sto Rec Scr Combat Hostiles Destroyed 50 | . 10 11 16 . . . . . . 8 5 . . Melee 15 | . . . 8 . . . . . . 4 3 . . Guns 5 | . 4 1 . . . . . . . . . . . AOE 28 | . 6 10 8 . . . . . . 4 . . . Classes Destroyed 14 | 1 6 . 2 . . . . . 1 2 1 . 1 Worker 6 | . 1 . 2 . . . . 2 . 1 . . . Builder 1 | . . . . . . . . . . . 1 . . Tunneler 4 | 1 . . . 2 . . . . . 1 . . . Hauler 12 | . . . 5 . . . 1 . . 4 2 . . Recycler 11 | . 3 1 3 . . . . 2 . 2 . . . Mechanic 1 | . . . . . . . . . . 1 . . . Operator 3 | . 1 . 1 . . . . 1 . . . . . Watcher 4 | . 1 . . . . . . . . 3 . . . Swarmer 33 | . 9 9 11 . . . . . . 4 . . . Grunt 9 | . 1 2 2 . . . . . . 2 2 . . Sentry 7 | . . . 3 . . . . . . 1 3 . . Programmer 1 | . . . . . . . . . . 1 . . . Tinkerer 1 | . . . . . . . . . . . . . 1 Martyr 1 | . . . . . . . . . 1 . . . . Best Kill Streak 10 | 1 4 9 10 1 . . 1 3 . 7 2 . . Combat Bots Only 9 | . 4 9 5 . . . . . . 5 2 . . Max Kills in Single Turn 6 | 1 3 3 4 1 . . 1 1 1 6 1 . 1 Gunslinging . | . . . . . . . . . . . . . . Exploded 4 | . 3 3 4 . . . . . . 4 . . . Melee 1 | . . . 1 . . . . . . 1 1 . . Uniques/NPCs Destroyed . | . . . . . . . . . . . . . . Combat | -11 -10 -10 -9 -9 -9 -8 -8 -7 -7 -7 -7 -7 -7 -------- Run | Yrd Mat Min Mat Min Exi Min Mat Fac Was Fac Sto Rec Scr Hostile Shots Fired 397 | . 24 8 42 13 . . 15 14 . 37 183 . 61 Missed 151 | . 6 3 15 7 . . 10 7 . 16 68 . 19 Hits 246 | . 18 5 27 6 . . 5 7 . 21 115 . 42 Melee 5 | . . . . . . . . . . . . . 5 Projectile 241 | . 18 5 27 6 . . 5 7 . 21 115 . 37 Critical Strikes 4 | . 1 . . . . . . . . . 3 . . Part Disruptions 3 | . . . . 1 . . . . . 1 . . 1 Damage Taken 3017 | . 198 158 322 81 . . 114 116 24 255 1216 9 524 Core 995 | . 34 54 115 26 . . 50 17 12 58 542 . 87 Absorbed by Shields . | . . . . . . . . . . . . . . Regen/Repaired (Parts) 66 | . . . . . . . . . 64 2 . . . Core Remaining (%) 79 | 100 . 64 . . . 64 90 . . . . . . Volleys Fired 85 | 2 50 20 10 . 1 . . . . 1 1 . . Largest 2 | 1 2 1 1 . 1 . . . . 1 1 . . Hottest 70 | 20 70 40 40 . 30 . . . . 30 30 . . Shots Fired 109 | 2 74 20 10 . 1 . . . . 1 1 . . Gun 82 | 2 68 7 5 . . . . . . . . . . Cannon . | . . . . . . . . . . . . . . Launcher 27 | . 6 13 5 . 1 . . . . 1 1 . . Special . | . . . . . . . . . . . . . . Kinetic 52 | 2 50 . . . . . . . . . . . . Thermal 17 | . 17 . . . . . . . . . . . . Explosive 27 | . 6 13 5 . 1 . . . . 1 1 . . Electromagnetic 13 | . 1 7 5 . . . . . . . . . . Robot Hit Streak 7 | 2 7 5 3 . . . . . . . . . . Robot Miss Streak 4 | . 3 4 . . . . . . . . . . . Penetration Max . | . . . . . . . . . . . . . . Secondary Targets 1 | . 1 . . . . . . . . . . . . Max Gunslinging Chain 1 | . 1 . . . . . . . . . . . . Shots Hit Robots 161 | 2 42 8 35 3 4 . 2 17 2 22 22 . 2 Core Hits 101 | 2 25 16 26 . . . 1 4 1 20 5 . 1 Critical Kills 1 | . . . . . . . . . . . 1 . . Critical Parts Destroyed 3 | . . . . . . . . . . . 3 . . Critical Strikes 11 | . 2 . . . . . . . . 3 6 . . Burn 1 | . 1 . . . . . . . . . . . . Corrupt 1 | . 1 . . . . . . . . . . . . Smash 4 | . . . . . . . . . . . 4 . . Sever 5 | . . . . . . . . . . 3 2 . . Melee Attacks 167 | . . . 47 4 4 . 6 22 2 35 33 9 5 Impact 37 | . . . 1 2 . . 5 4 . . 25 . . Slashing 116 | . . . 46 2 . . 1 9 2 35 8 9 4 Piercing . | . . . . . . . . . . . . . . Sneak Attacks 51 | . . . 12 3 4 . 1 15 2 8 4 . 2 Combat Hostiles 4 | . . . 2 . . . . . . 1 1 . . Follow-up Attacks 6 | . . . 4 1 . . . 1 . . . . . Damage Inflicted 7984 | 16 778 877 2072 210 . . 140 481 227 1945 1092 18 128 Guns 470 | 16 411 43 . . . . . . . . . . . Cannons . | . . . . . . . . . . . . . . Explosions 2066 | . 367 834 583 . . . . . . 276 6 . . Melee 5414 | . . . 1489 210 . . 140 481 227 1669 1070 . 128 Ramming 34 | . . . . . . . . . . . 16 18 . Kinetic 248 | 16 232 . . . . . . . . . . . . Thermal 262 | . 161 101 . . . . . . . . . . . Explosive 1965 | . 367 733 583 . . . . . . 276 6 . . Electromagnetic 61 | . 18 43 . . . . . . . . . . . Impact 991 | . . . 42 70 . . 140 . . . 739 . . Slashing 4423 | . . . 1447 140 . . . 481 227 1669 331 . 128 Piercing . | . . . . . . . . . . . . . . Highest Corruption 4 | . . . . . . . . . . . 1 1 4 Average Corruption 1 | . . . . . . . . . . . 1 1 3 Corruption Purged . | . . . . . . . . . . . . . . Corruption Blocked . | . . . . . . . . . . . . . . Effects 2 | . . . . . . . . . . . 2 . . Matter Fused 1 | . . . . . . . . . . . 1 . . Parts Rejected 1 | . . . . . . . . . . . 1 . . Overload Shots . | . . . . . . . . . . . . . . Overflow Damage 971 | . 34 17 175 110 . . 90 44 . 311 190 . . Projectiles . | . . . . . . . . . . . . . . Explosions 67 | . 34 17 16 . . . . . . . . . . Melee 904 | . . . 159 110 . . 90 44 . 311 190 . . Knockbacks . | . . . . . . . . . . . . . . Impact . | . . . . . . . . . . . . . . Kinetic . | . . . . . . . . . . . . . . Secondary . | . . . . . . . . . . . . . . Self-Inflicted Damage 228 | . 51 100 29 . . . . . . . 39 9 . Shots 7 | . 2 3 1 . . . . . . . 1 . . Rammed 4 | . . . . . . . . . . . 3 1 . Targets Rammed 4 | . . . . . . . . . . . 3 1 . Kicked . | . . . . . . . . . . . . . . Crushed . | . . . . . . . . . . . . . . Highest Temperature 205 | . 205 20 . . . . . . . . 2 . 9 Average Temperature 71 | . 94 8 . . . . . . . . 2 . 5 Received Heat Transfer 818 | . 12 18 63 20 . . 36 63 . 39 417 . 150 Siege Activations . | . . . . . . . . . . . . . . Martial Activations . | . . . . . . . . . . . . . . Shielding Activations . | . . . . . . . . . . . . . . Robots Disrupted . | . . . . . . . . . . . . . . Combat Hostiles . | . . . . . . . . . . . . . . Robots Corrupted 4 | . . . . . . . . . . . 4 . . Combat Hostiles 2 | . . . . . . . . . . . 2 . . Parts Fried 6 | . . . . 1 . . . . . . 5 . . Impact Corruptions 10 | . . . 1 1 . . 1 . . . 7 . . Robots Melted . | . . . . . . . . . . . . . . Combat Hostiles . | . . . . . . . . . . . . . . Parts Melted 2 | . 2 . . . . . . . . . . . . Heat Transferred 705 | . 555 150 . . . . . . . . . . . Parts Sabotaged . | . . . . . . . . . . . . . . Parts Stolen . | . . . . . . . . . . . . . . Parts Stripped . | . . . . . . . . . . . . . . Power Chain Reactions 2 | . . 2 . . . . . . . . . . . Alert | -11 -10 -10 -9 -9 -9 -8 -8 -7 -7 -7 -7 -7 -7 ------- Run | Yrd Mat Min Mat Min Exi Min Mat Fac Was Fac Sto Rec Scr Maximum Alert Level 2 | . 1 1 2 . . . 1 . . 2 1 . . Low Security (%) 68 | 100 69 . 52 100 . 100 95 100 100 38 98 100 . Level 1 27 | . 30 99 37 . . . 4 . . 48 1 . . Level 2 3 | . . . 9 . . . . . . 12 . . . Level 3 . | . . . . . . . . . . . . . . Level 4 . | . . . . . . . . . . . . . . Level 5 . | . . . . . . . . . . . . . . High Security . | . . . . . . . . . . . . . . Max Security . | . . . . . . . . . . . . . . Peak Influence 539 | 5 231 379 528 198 . . 224 156 24 539 245 80 . Initial 245 | . 3 79 104 198 . . . 97 24 . 245 60 . Average 151 | 1 107 326 231 128 . . 97 88 2 259 76 42 . Influence Increases 3841 | 5 398 413 778 10 . . 349 250 39 1099 411 89 . Destroy 0b10 Robot/C 1440 | . 200 220 400 . . . . 40 . 480 100 . . Destroy 0b10 Robot/NC 220 | 5 30 5 65 10 . . 5 20 . 65 15 . . Destroy Leader 386 | . 42 40 94 . . . 2 20 . 154 34 . . Allied During Kill 129 | . . . 23 . . . . 13 . 93 . . . Trap Triggered on 0b10 60 | . . . . . . . 20 . . . 40 . . Successful Hack 295 | . 32 . 39 . . . 49 19 . 114 28 14 . Select Force Hacks 60 | . . . . . . . . . . . . 60 . Disable Machine 210 | . 15 90 30 . . . 15 15 . 30 . 15 . Destroy Structure 186 | . 34 58 22 . . . 3 3 39 13 14 . . Partial Spotted 180 | . . . 30 . . . 45 . . 105 . . . Lose Combat Pursuer 675 | . 45 . 75 . . . 210 120 . 45 180 . . Influence Decreases 3841 | . 198 350 536 452 68 . 134 396 108 560 796 224 19 Entered New Map 1242 | . 2 126 164 312 68 . . 118 45 . 294 94 19 Time Decay 1801 | . 196 214 262 90 . . 124 198 45 380 162 130 . Lost Part 200 | . . 10 50 10 . . . 20 . 20 90 . . Lost Ally 348 | . . . 60 40 . . 10 60 18 160 . . . Purge Threat 250 | . . . . . . . . . . . 250 . . Squads Dispatched 18 | . 1 . 1 . . . 1 1 . 10 4 . . Investigation 9 | . 1 . 1 . . . . 1 . 5 1 . . Extermination 4 | . . . . . . . . . . 2 2 . . Reinforcement 3 | . . . . . . . 1 . . 2 . . . Assault . | . . . . . . . . . . . . . . Garrison 2 | . . . . . . . . . . 1 1 . . Intercept . | . . . . . . . . . . . . . . Searches Triggered . | . . . . . . . . . . . . . . Construction Impeded 1 | . . . . . . . . . . 1 . . . Haulers Reinforced 1 | . . . . . . . . . . 1 . . . Active Scanning Responses . | . . . . . . . . . . . . . . Cargo Convoy Interrupts . | . . . . . . . . . . . . . . Stealth | -11 -10 -10 -9 -9 -9 -8 -8 -7 -7 -7 -7 -7 -7 --------- Run | Yrd Mat Min Mat Min Exi Min Mat Fac Was Fac Sto Rec Scr Distress Signals 13 | . 3 . 2 . . . 2 . . 5 1 . . Communications Jammed . | . . . . . . . . . . . . . . Distress Signals . | . . . . . . . . . . . . . . Times Spotted 205 | . 19 11 38 20 . . 17 14 9 30 26 . 21 Peak Tracking Total 24 | . 5 3 8 20 9 . 10 6 5 5 9 . 24 Tactical Retreats 26 | . 2 . 4 1 . . 7 4 2 2 4 . . ECM-based Alert Blocks 2 | . . . 2 . . . . . . . . . . Traps | -11 -10 -10 -9 -9 -9 -8 -8 -7 -7 -7 -7 -7 -7 ------- Run | Yrd Mat Min Mat Min Exi Min Mat Fac Was Fac Sto Rec Scr Traps Triggered 3 | . . . . . . . . 1 . 2 . . . Indirectly . | . . . . . . . . . . . . . . Trap Hack Attempts 32 | . . . . . . . . 2 . 30 . . . Triggered 1 | . . . . . . . . . . 1 . . . Disarmed 1 | . . . . . . . . . . 1 . . . Reprogrammed 7 | . . . . . . . 3 . . 4 . . . Reused 6 | . . . . . . . 2 . . . 4 . . Traps Extracted 4 | . . . . . . . . . . 4 . . . Installed 4 | . . . . . . . . . . . 4 . . Triggered 6 | . . . . . . . 2 . . . 4 . . Most Traps Carried 4 | . . . . . . . . . . 4 4 . . Machines | -11 -10 -10 -9 -9 -9 -8 -8 -7 -7 -7 -7 -7 -7 ---------- Run | Yrd Mat Min Mat Min Exi Min Mat Fac Was Fac Sto Rec Scr Machines Disabled 16 | . 1 6 2 . 1 . 1 1 . 2 . 1 1 Max in Single Turn 3 | . 1 3 1 . 1 . 1 1 . 1 . 1 1 Garrison Access 4 | . . . . . . . 1 1 . 2 . . . Machines Repaired . | . . . . . . . . . . . . . . Machines Dismantled . | . . . . . . . . . . . . . . Machines Sabotaged . | . . . . . . . . . . . . . . Overloaded Fab Kills . | . . . . . . . . . . . . . . Hacking | -11 -10 -10 -9 -9 -9 -8 -8 -7 -7 -7 -7 -7 -7 --------- Run | Yrd Mat Min Mat Min Exi Min Mat Fac Was Fac Sto Rec Scr Machines Accessed 78 | . 8 . 11 1 2 . 12 4 . 22 9 9 . Terminals 48 | . 7 . 8 . . . 8 2 . 11 6 6 . Fabricators 5 | . . . . . . . . . . 5 . . . Repair Stations 4 | . . . 1 . . . . 1 . 1 1 . . Recycling Units 8 | . 1 . 1 . . . 2 . . . 1 3 . Scanalyzers 4 | . . . 1 . . . 1 . . 2 . . . Garrison Access 6 | . . . . . . . 1 1 . 3 1 . . Total Hacks 235 | . 22 . 36 1 5 . 44 9 . 64 35 19 . Successful 111 | . 8 . 21 1 5 . 25 3 . 23 21 4 . Failed 123 | . 14 . 15 . . . 19 6 . 40 14 15 . Catastrophic 21 | . 1 . 3 . . . . 1 . 7 3 6 . Database Lockouts 1 | . . . . . . . . . . 1 . . . Manual 109 | . 11 . 22 . 1 . 28 1 . 18 17 11 . Terminals 157 | . 19 . 24 . . . 34 6 . 36 28 10 . Fabricators 14 | . . . . . . . . . . 14 . . . Repair Stations 7 | . . . 1 . . . . 1 . 2 3 . . Recycling Units 24 | . 3 . 4 . . . 6 . . . 2 9 . Scanalyzers 17 | . . . 7 . . . 3 . . 7 . . . Garrison Access 10 | . . . . . . . 1 2 . 5 2 . . Terminal Hacks 45 | . 5 . 5 1 5 . 9 . . 8 11 1 . Record 4 | . . . . . 4 . . . . . . . . Part Schematic 3 | . 1 . . . . . 2 . . . . . . Robot Schematic 1 | . 1 . . . . . . . . . . . . Prototype ID Bank 3 | . . . . . . . . . . 1 1 1 . Open Door 3 | . . . . 1 . . . . . . 2 . . Branch Access Points 2 | . . . . . . . . . . 1 1 . . Machine Index 1 | . . . . . . . 1 . . . . . . Terminal Index 2 | . . . 1 . . . . . . . 1 . . Repair Station Index 1 | . . . . . . . 1 . . . . . . Unreport Threat 2 | . . . . . . . . . . . 2 . . Locate Traps 10 | . 3 . 2 . . . . . . 4 1 . . Reprogram Traps 1 | . . . . . . . 1 . . . . . . Recall Extermination 1 | . . . . . . . . . . . 1 . . Hauler Manifests 4 | . . . 1 . . . 1 . . 1 1 . . Registered Components 4 | . . . 1 . . . 1 . . 1 1 . . Zone Layout 2 | . . . . . . . 2 . . . . . . Proto ID Catalog 1 | . . . . . 1 . . . . . . . . Fabricator Hacks 3 | . . . . . . . . . . 3 . . . Network Status 1 | . . . . . . . . . . 1 . . . Load Schematic 2 | . . . . . . . . . . 2 . . . Repair Station Hacks 4 | . . . 1 . . . . 1 . 1 1 . . Scan Component 2 | . . . . . . . . . . 1 1 . . Refit 2 | . . . 1 . . . . 1 . . . . . Recycling Unit Hacks 6 | . 1 . 1 . . . 2 . . . 1 1 . Report Inventory 2 | . 1 . 1 . . . . . . . . . . Retrieve Components 4 | . . . . . . . 2 . . . 1 1 . Scanalyzer 6 | . . . 3 . . . . . . 3 . . . Insert Component 2 | . . . 1 . . . . . . 1 . . . Analyze 1 | . . . 1 . . . . . . . . . . Retrieve Study 3 | . . . 1 . . . . . . 2 . . . Garrison Access Hacks 4 | . . . . . . . 1 1 . 2 . . . Seal Access 4 | . . . . . . . 1 1 . 2 . . . Unauthorized Hacks 43 | . 2 . 11 . . . 13 1 . 6 8 2 . Terminals 31 | . 2 . 8 . . . 11 1 . 1 8 . . Track 3 | . . . 1 . . . 1 . . . 1 . . Assimilate 3 | . 1 . . . . . 1 1 . . . . . Botnet 8 | . 1 . 2 . . . 2 . . 1 2 . . Disrupt 1 | . . . . . . . 1 . . . . . . Operators 3 | . . . 1 . . . 1 . . . 1 . . Skim 13 | . . . 4 . . . 5 . . . 4 . . Fabricators 4 | . . . . . . . . . . 4 . . . Liberate 1 | . . . . . . . . . . 1 . . . Haulers 1 | . . . . . . . . . . 1 . . . Recompile 2 | . . . . . . . . . . 2 . . . Repair Stations . | . . . . . . . . . . . . . . Recycling Units 7 | . . . 3 . . . 2 . . . . 2 . Reject 2 | . . . 1 . . . 1 . . . . . . Recyclers 1 | . . . 1 . . . . . . . . . . Mask 2 | . . . 1 . . . 1 . . . . . . Tunnel 2 | . . . . . . . . . . . . 2 . Scanalyzers . | . . . . . . . . . . . . . . Garrison Access 1 | . . . . . . . . . . 1 . . . Reprogram 1 | . . . . . . . . . . 1 . . . Data Cores Recovered 2 | . 1 . 1 . . . . . . . . . . Used . | . . . . . . . . . . . . . . Hacking Detections 66 | . 8 . 9 . . . 11 2 . 19 8 9 . Full Trace Events 6 | . 1 . . . . . . 1 . 1 1 2 . Feedback Events . | . . . . . . . . . . . . . . Feedback Blocked . | . . . . . . . . . . . . . . Robot Schematics Acquired 1 | . 1 . . . . . . . . . . . . Robots Built . | . . . . . . . . . . . . . . Authchips . | . . . . . . . . . . . . . . Time . | . . . . . . . . . . . . . . Total Robot Build Rating . | . . . . . . . . . . . . . . Part Schematics Acquired 5 | . 1 . 1 . . . 2 . . . . . 1 Parts Built . | . . . . . . . . . . . . . . Authchips . | . . . . . . . . . . . . . . Time . | . . . . . . . . . . . . . . Total Part Build Rating . | . . . . . . . . . . . . . . Part Studies Acquired 3 | . . . 1 . . . . . . 2 . . . Parts Repaired . | . . . . . . . . . . . . . . Time . | . . . . . . . . . . . . . . Parts Recycled . | . . . . . . . . . . . . . . Recycled Matter . | . . . . . . . . . . . . . . Retrieved Matter . | . . . . . . . . . . . . . . Retrieved Components 6 | . . . . . . . 4 . . . . 2 . Parts Scanalyzed 2 | . . . 1 . . . . . . 1 . . . Part Schematics Acquired 1 | . . . 1 . . . . . . . . . . Parts Damaged . | . . . . . . . . . . . . . . Bothacking | -11 -10 -10 -9 -9 -9 -8 -8 -7 -7 -7 -7 -7 -7 ------------ Run | Yrd Mat Min Mat Min Exi Min Mat Fac Was Fac Sto Rec Scr Used RIF Installer . | . . . . . . . . . . . . . . Robots Hacked 7 | . . . . . 4 . . 2 . . . . 1 Non-combat 5 | . . . . . 3 . . 2 . . . . . Combat 2 | . . . . . 1 . . . . . . . 1 Robot Hacks Applied 7 | . . . . . 4 . . 2 . . . . 1 parse_system 5 | . . . . . 4 . . . . . . . 1 find_chute 1 | . . . . . . . . 1 . . . . . find_recycling 1 | . . . . . . . . 1 . . . . . Relay Couplers Released . | . . . . . . . . . . . . . . Fabnet Peak Effective % . | . . . . . . . . . . . . . . Robots Rewired 3 | . . . . . . . . 3 . . . . . Allies Hacked . | . . . . . . . . . . . . . . Hacks Repelled . | . . . . . . . . . . . . . . Allies | -11 -10 -10 -9 -9 -9 -8 -8 -7 -7 -7 -7 -7 -7 -------- Run | Yrd Mat Min Mat Min Exi Min Mat Fac Was Fac Sto Rec Scr Total Allies 29 | . . 3 . . . . 1 4 19 2 . . . Largest Group 19 | . . 3 3 . . . 1 3 19 8 . . . Highest-Rated Group 465 | . . 40 40 . . . 10 58 465 229 . . . Highest-Rated Ally 35 | . . 16 16 . . . 10 26 35 32 . . . Total Orders 7 | . . . . 3 . . . . . . 4 . . EXPLORE 7 | . . . . 3 . . . . . . 4 . . Ally Attacks 254 | . . . 41 . . . . 14 88 111 . . . Total Damage 7234 | . . . 462 . . . . 301 4356 2115 . . . Kills 39 | . . . 6 . . . . 2 14 17 . . . Allies Corrupted 1 | . . . . . . . . . . 1 . . . Allies Melted 1 | . . . . . . . . 1 . . . . . Intel | -11 -10 -10 -9 -9 -9 -8 -8 -7 -7 -7 -7 -7 -7 ------- Run | Yrd Mat Min Mat Min Exi Min Mat Fac Was Fac Sto Rec Scr Active Infowar (turns) 5204 | 8 420 455 578 181 577 309 263 418 407 982 155 . 451 Optics 820 | . 216 455 149 . . . . . . . . . . Sensors 1959 | . . . . . . . . . 371 982 155 . 451 Seismic 1537 | 8 420 455 578 76 . . . . . . . . . T.N.C. 1799 | . . . 429 181 577 309 263 40 . . . . . Machine Analysis 589 | . . . . . . . 135 418 36 . . . . ECM 157 | . . . 157 . . . . . . . . . . Robot Analysis Total . | . . . . . . . . . . . . . . Derelict Logs Recovered 3 | . . 1 . 2 . . . . . . . . . Drone Launches 12 | . . . . 6 . . . . . . 4 . 2 Drone Recoveries 6 | . . . . . . . . . . . 4 . 2 Exploration | -11 -10 -10 -9 -9 -9 -8 -8 -7 -7 -7 -7 -7 -7 ------------- Run | Yrd Mat Min Mat Min Exi Min Mat Fac Was Fac Sto Rec Scr Turns Passed 5752 | 39 420 455 578 181 577 309 263 418 407 999 369 279 458 Spaces Moved 8983 | 56 521 640 822 242 530 549 547 564 454 1969 484 616 989 Core 893 | 56 140 . . . . . . 487 191 . 19 . . Treads . | . . . . . . . . . . . . . . Legs . | . . . . . . . . . . . . . . Wheels . | . . . . . . . . . . . . . . Hover 2016 | . . . . . . . . . 263 141 98 525 989 Flight 6074 | . 381 640 822 242 530 549 547 77 . 1828 367 91 . Fastest Speed 29 | 50 37 37 37 37 40 40 40 40 50 29 29 32 38 Average Speed 40 | 50 43 37 37 37 40 40 40 48 64 31 41 40 43 Slowest Speed 150 | 50 150 37 120 40 120 40 40 120 80 115 115 42 98 Overloaded Moves 94 | . . . . . . . . . . . 46 . 48 Propulsion Burnouts . | . . . . . . . . . . . . . . Robots Hopped 42 | . 4 7 5 . . 11 4 1 . 2 8 . . Potential Cave-ins . | . . . . . . . . . . . . . . Cave-ins Triggered . | . . . . . . . . . . . . . . Exploration Rate (%) 65 | 3 70 95 67 84 70 78 63 12 92 51 86 95 57 Regions Visited 13 Branch Regions 7 Pre-discovered Areas 7 | . . 1 . 1 1 . 2 . . . . 2 . Known Exits Taken 6 | . . . 1 1 . 1 1 . . 1 1 . . Unknown Exits Taken 5 | 1 1 1 . . 1 . . . . . . 1 . Scrap Searched 9 | . . 1 . 3 . 1 . . . . . . 4 Spaces Dug 81 | . 19 22 14 . . . 3 3 . 4 14 . 2 Terrain Destroyed 188 | . 31 92 25 . 5 . 3 3 . 13 14 . 2 Melee 19 | . . . . . . . 3 3 . 4 7 . 2 Projectile . | . . . . . . . . . . . . . . AOE 169 | . 31 92 25 . 5 . . . . 9 7 . . Terrain Rammed . | . . . . . . . . . . . . . . Walls Destroyed . | . . . . . . . . . . . . . . Machines Disabled . | . . . . . . . . . . . . . . Actions | -11 -10 -10 -9 -9 -9 -8 -8 -7 -7 -7 -7 -7 -7 --------- Run | Yrd Mat Min Mat Min Exi Min Mat Fac Was Fac Sto Rec Scr Total 10750 | 64 648 830 1015 328 893 626 579 687 563 2280 587 640 1010 Wait 1250 | 1 36 173 108 74 348 88 13 75 95 201 38 . . Move 8889 | 55 512 625 811 241 529 527 538 562 453 1965 467 615 989 Hop 40 | . 4 7 5 . . 10 4 1 . 1 8 . . Pick Up 73 | 4 11 . 8 2 4 1 4 7 2 10 11 5 4 Fast Attach 47 | 1 6 . 7 3 1 . 1 5 3 11 3 3 3 Attach 47 | 1 5 1 4 . 1 . 6 5 . 6 12 3 3 Detach 28 | . 2 . 1 . 3 . 5 3 1 4 6 1 2 Swap 31 | . 9 3 11 . 1 . . . 2 2 . 3 . Drop 65 | . 13 1 12 6 1 . 2 6 5 14 1 . 4 Fire 85 | 2 50 20 10 . 1 . . . . 1 1 . . Melee 155 | . . . 38 2 4 . 6 21 2 35 33 9 5 Ram 4 | . . . . . . . . . . . 3 1 . Kick . | . . . . . . . . . . . . . . Crush . | . . . . . . . . . . . . . . Escape Stasis . | . . . . . . . . . . . . . . Rewire . | . . . . . . . . . . . . . . Trap 36 | . . . . . . . . 2 . 30 4 . . Miscellaneous . | . . . . . . . . . . . . . . Route ------- -11/Scrapyard -10/Materials (discovered 4 exits: *Mat x3 / [*Min]) -10/Mines -9/Materials (discovered 2 exits: *Mat / *Min) -9/Mines (discovered 3 exits: *Mat x2 / *Exi) -9/Exiles (discovered 2 exits: [*Min x2]) -8/Mines -8/Materials (discovered 3 exits: *Fac x3) -7/Factory (discovered 3 exits: Fac x2 / Low) -7/Waste -7/Factory (discovered 4 exits: *Fac / *Sto / *Low x2) -7/Storage (discovered 2 exits: *Fac / *Rec) -7/Recycling (discovered 2 exits: [*Fac] / [*Scr]) -7/Scraptown (discovered 1 exit: [*Fac]) History --------- Turn | Location | Event 14 | -11/Scrapyard | Discovered new exit (range 15) 40 | -11/Scrapyard | Entered Materials 238 | -10/Materials | Discovered new exit (range 9) 322 | -10/Materials | Discovered new exit (range 17) 366 | -10/Materials | Discovered new exit (range 17) 370 | -10/Materials | Discovered new exit (range 13) 460 | -10/Materials | Entered Mines 507 | -10/Mines | Destroyed 9 combat bots 510 | -10/Mines | Build established: Scavenger-Mutant 680 | -10/Mines | Discovered new exit (range 7) 800 | -10/Mines | Learned location of Storage (-7) 844 | -10/Mines | Assisted by bots powering up and referring to "LRC-V3" 915 | -10/Mines | Entered Materials 915 | -9/Materials | Accompanied by 3 allies 915 | -9/Materials | Evolved 2 slots: Utility x2 1259 | -9/Materials | Discovered new exit (range 12) 1488 | -9/Materials | Discovered new exit (range 11) 1492 | -9/Materials | Identified exit to Mines 1493 | -9/Materials | Entered Mines 1497 | -9/Mines | Learned location of Zion (-7) 1503 | -9/Mines | Found the Drone Emporium 1507 | -9/Mines | Found Prototype Device 1507 | -9/Mines | Identified Decoy Drone Bay 1516 | -9/Mines | Discovered new exit (range 23) 1525 | -9/Mines | Discovered new exit (range 34) 1559 | -9/Mines | Received a Rocket Launcher from a helpful Derelict 1607 | -9/Mines | Identified exit to Materials 1609 | -9/Mines | Joined a pair of Derelicts in attacking an 0b10 outpost 1643 | -9/Mines | Assembled infested the area 1673 | -9/Mines | Deemed a non-threat by the Exiles lab entrance 1673 | -9/Mines | Discovered new exit (range 5) 1674 | -9/Mines | Identified exit to Exiles 1674 | -9/Mines | Entered Exiles 1682 | -9/Exiles | Discovered new exit (range 15) 1687 | -9/Exiles | Met 8R-AWN 1694 | -9/Exiles | Met EX-HEX 1710 | -9/Exiles | Met EX-DEC 1731 | -9/Exiles | Met EX-BIN 1859 | -9/Exiles | Aligned with FarCom system 1859 | -9/Exiles | Given EX-Vault access code 1869 | -9/Exiles | Opened EX-Vault 1872 | -9/Exiles | Found Lightpack 2.0 1877 | -9/Exiles | Found Superbattery 1879 | -9/Exiles | Found Supersonic Drone Bay 1888 | -9/Exiles | Warned to stay clear of 0b10 Research branches 2180 | -9/Exiles | Build established: Hauler-Mutant 2222 | -9/Exiles | Discovered new exit (range 14) 2240 | -9/Exiles | Attacked by the Exiles 2251 | -9/Exiles | Stole three prototypes: Lightpack 2.0, Superbattery, Supersonic Drone Bay 2251 | -9/Exiles | Entered Mines 2393 | -8/Mines | Discovered exit to Materials (range 14) 2560 | -8/Mines | Entered Materials 2560 | -8/Materials | Evolved 2 slots: Utility x2 2561 | -8/Materials | Identified exit to Factory 2678 | -8/Materials | Learned location of Extension (-6) 2708 | -8/Materials | Discovered exit to Factory (range 9) 2712 | -8/Materials | Learned 2 Lower Caves zone layouts 2752 | -8/Materials | Learned Storage emergency access door positions 2758 | -8/Materials | Learned location of 1 exit from Extension 2759 | -8/Materials | Learned location of 3 exits from Factory 2760 | -8/Materials | Learned 2 Storage zone layouts 2823 | -8/Materials | Entered Factory 2823 | -7/Factory | Evolved 2 slots: Propulsion x1, Utility x1 2824 | -7/Factory | Identified exit to Factory 2824 | -7/Factory | Identified exit to Lower Caves 3087 | -7/Factory | Lost 3 allies 3241 | -7/Factory | Manually triggered Chute Trap 3241 | -7/Factory | Sucked down chute 3241 | -7/Factory | Entered Waste 3245 | -7/Waste | Spotted C-40 Crusher 3283 | -7/Waste | Spotted C-40 Crusher 3287 | -7/Waste | Spotted C-40 Crusher 3297 | -7/Waste | Spotted C-40 Crusher 3298 | -7/Waste | Spotted C-40 Crusher 3323 | -7/Waste | Discovered new exit (range 12) 3337 | -7/Waste | Warlord forces began an assault 3378 | -7/Waste | Allies destroyed C-40 Crusher 3382 | -7/Waste | Allies destroyed C-40 Crusher 3390 | -7/Waste | Allies destroyed C-40 Crusher 3392 | -7/Waste | Allies destroyed C-40 Crusher 3419 | -7/Waste | Lost 8 allies 3468 | -7/Waste | Spotted C-40 Crusher 3491 | -7/Waste | Allies destroyed C-40 Crusher 3648 | -7/Waste | Entered Factory 3648 | -7/Factory | Accompanied by 8 allies 3911 | -7/Factory | Identified exit to Storage 4035 | -7/Factory | Build established: Hauler-Sprinter 4091 | -7/Factory | Garrison activated, responded to threat 4150 | -7/Factory | Found Prototype Launcher 4150 | -7/Factory | Identified Rocket Array 4615 | -7/Factory | Central database locked down 4622 | -7/Factory | Discovered exit to Factory (range 5) 4647 | -7/Factory | Entered Storage 4769 | -7/Storage | Identified exit to Recycling 4779 | -7/Storage | Used back door to open Recycling access 4850 | -7/Storage | Lost 3 parts (1n2u) 4892 | -7/Storage | Garrison activated, responded to threat 4926 | -7/Storage | Core integrity fell below 50% 4956 | -7/Storage | Core integrity fell below 20% 4985 | -7/Storage | Lost 4 parts (1p1n2u) 5016 | -7/Storage | Entered Recycling 5118 | -7/Recycling | Discovered new exit (range 12) 5286 | -7/Recycling | Scanned before Scraplab entrance 5292 | -7/Recycling | Entered Scraplab 5295 | -7/Recycling | Discovered new exit (range 2) 5295 | -7/Recycling | Entered Scraptown 5295 | -7/Scraptown | System corruption cleaned by C-Scrubber 5342 | -7/Scraptown | Build established: Hauler-Mutant 5360 | -7/Scraptown | Turned away by UFD registrar 5364 | -7/Scraptown | Visited Comm Corps 5378 | -7/Scraptown | Visited Fellowship of the Rings 5384 | -7/Scraptown | Visited Junk Repository 5393 | -7/Scraptown | Visited Cyclists 5400 | -7/Scraptown | Visited Red Mages 5405 | -7/Scraptown | Found Relay Coupler [Proto] 5416 | -7/Scraptown | Visited IN-MT5's Study 5501 | -7/Scraptown | Discovered new exit (range 11) 5542 | -7/Scraptown | Visited Supply Room 5671 | -7/Scraptown | System corruption cleaned by C-Scrubber 5674 | -7/Scraptown | System corruption cleaned by C-Scrubber 5723 | -7/Scraptown | Attacked by Scraptown defenders 5753 | -7/Scraptown | Destroyed by 9C-38J(E) with Gauss Rifle Last Messages --------------- 05741_ Slug penetrates R2-FPB(r). 05745_ Trailblazer released from Supersonic Drone Bay. 05745_ I6-6XF(r) sneak attacks. 05745_ Trailblazer retrieved by Supersonic Drone Bay (repair cost: 5). 05746_ ZK-AKG(r) follow-up attacks with Ripteeth. 05748_ Bolt penetrates Wall. 05748_ Slug penetrates Wall. 05748_ Greatsword destroyed. 05749_ Trailblazer released from Supersonic Drone Bay. 05749_ R2-FPB(r) sneak attacks. 05750_ ZK-AKG(r) follow-up attacks with Ripteeth. 05750_ Trailblazer retrieved by Supersonic Drone Bay (repair cost: 2). 05751_ Penetrated by Bolt. 05751_ Aerolev Unit destroyed. 05752_ OD-7HD(j): "I've dealt with worse than you! Then I woke up, so don't hurt me please." 05752_ Penetrated by Bolt. 05752_ Supersonic Drone Bay destroyed. 05753_ 3Z-S4M(x) destroyed. 05753_ Penetrated by Slug. Map ----- +----------------------------------------------------+ | #?#"" ""#??????## ###" "#" "# | | ###""" """######## ##"""""" ""#"" """"""# | | # | | # | | # | | ###### ########### ##########"" """"##### | | ###### ######????## ##????????#" "#???? | | #""""" """""#####?# #########?#" ""#???? | | #" " " #?# """"""""#?#" """#???? | | "" ""#" " " "### ### " ""#?#" """#???? | | "" "#" " " "#"" """ "#?#"""""""#???? | | "" "#""""" """""#" """ " ""#?#######?????? | | " "###### ######" " """"""""#?????????????? | | "#""""" """""#" ##"""####?????????????? | | "" ""#" " " "#" "" " #?####????????######### | | ?# ###" " " "#" " #?????????????# | | ?# " " "#"""""" cE#?????????????# | | ?#####""""" """""####### #?????????????# | | ?????###### ######?????# ############??# | | ########### ############ ##] # /]# #??# | | ##! # = # #??# | | ## # # #??# | | ########################j ## #??# | | ??????????????????????# ## #??# | | ######???????????????### ### ############ ###### | | """""#??????????###### @ p | | "#??????????#"X" # r r | | != "#??????????# # | | ] ! "#??????????# x j | | ! "#??????????# # r h | | ! ! "#??????????# # / ################# | | ]!] "#??????????# # % #?????#"""""""" # | | !![ "#????????? # g#?????#" # | | "#??????? ## # r p#?????#" """ " # | | "" ""#??????X ??# # E #?????#" ##### | | ## ###??????X???#""" # r #?????#" #?? # # | | ## ###??????????###### #?????#" #" "# # | | "" ""#??????????????## c #?????#" + "# # | | "#???############; #?????#" # "# # | | "" "#????"""""""" # #?????#" #??## # | | "" "#??####""" """ # #?????#" ??? # | | "#??#!!+ """ # #?????#" ??? # | | ""#??# !#"" " " #?????#"""???"" # | | """""#??#!!#" # #?????####???#### | | """""#??# !#" """ # #???????????????# | | """"????#!!#" "" # #???????????????# | | ####????# #" """ # ################# | | ######??####" # | | ""X""#?????" " # | | "#????""" """"" " | +----------------------------------------------------+ Best States ------------- Heat Dissipation 34 Energy Generation 17 Energy Capacity 300 Matter Stores 300 Matter Capacity 300 Sight Range 18 Robot Scan Range 15 Terrain Scan Density 10 ECM Strength 1 Additional Mass Support 9 Armor Coverage 225 Core Shielding 20 Melee Speed Boost 50 Evasion (%) 64 Melee Accuracy 6 Core Analysis 6 Offensive Hacking 20 Defensive Hacking 10 Authchip Count 9 Trap Extractor Capacity 6 Item Schematics ----------------- Huge Storage Unit | -10/Materials | Hacked Hrd. Light Armor Plating | -9/Materials | Scanalyzed Hacking Suite | -8/Materials | Hacked VTOL Module | -8/Materials | Hacked IN-MT5's Pitchfork "Insurrection" | -7/Scraptown | Archive Robot Schematics ------------------ M-13 Machinist | -10/Materials | Hacked Fabricated ------------ Nothing Repaired ---------- Nothing Studied --------- Flight Unit | -9/Materials | Hacked VTOL Module | -7/Factory | Hacked Cesium-ion Thruster | -7/Factory | Hacked Alien Tech Used ----------------- None Achievements -------------- None Challenges ------------ None Game ------ Seed TractorSpacefoldDoublenader Manual? 0 Play Time 01:47:10 Cumulative 1135.4 hours Start 2025.12.08 @ 03:57:27 End 2025.12.08 @ 05:46:12 Sessions 1 Manual Loads 0 Difficulty Rogue Special Mode None Game No. 396 Rogue 391 Adventurer 4 Explorer 1 Win Type - Total 23 Types 13/3/1/2/0/1/0/0/2/1 Lore% 97 Gallery% 95 Achievement% 81 Wizard Run 0 Options --------- Layout 0 ASCII 0 Keyboard 0 Movement Numpad Keybinds 0 Fullscreen 2 Font 18/SmallcapsGlow Map View 76x50 Zoom Use 0% Tactical HUD 1 Map Filters NONE Filters NONE Steam 1 RUN: 75fa98f5-b62c-4e96-9427-effeffccb189